{"text_format":"3","workbook":"xlsx","n_sheets":1,"sheets":["Startup-Kosten"],"not_rendered":{"defined_names":1},"read":"whole","date_system":"1900"}

{"sheet":"Startup-Kosten","index":0,"n_rows":120,"n_cols":4,"rows_kept":120,"merged":[[1,1,1,3],[60,1,60,3],[82,1,82,3]]}
["STARTUP-KOSTEN",null,null,"FIRMENNAME"]
[null,"EIN HINWEIS VOR VERWENDUNG DIESES ARBEITSBLATTS\nFast jeder, der schon einmal ein Unternehmen gegründet hat, unterschätzte die Kosten und lief dann Gefahr, mit unzureichenden Kapitalrücklagen auskommen zu müssen. Um diesen Fehler zu vermeiden, sollten Sie bei der Recherche und Planung sehr sorgfältig vorgehen. Mithilfe der Vorlage für Startup-Kosten werden Sie durch diesen Prozess geführt.\n\nBEGINNEN SIE MIT EINER SCHÄTZUNG IHRER KOSTEN\nWas wird es kostet, Ihr Unternehmen ans Laufen zu bringen?  Der Schlüssel zur Genauigkeit liegt hier in der Beachtung aller Details. Erstellen Sie für jede Kostenkategorie eine Liste aller erforderlichen Anschaffungen. Diese umfasst sowohl Sachanlagen (z. B. Ausrüstung, Bestand) als auch Dienstleistungen (z. B. Umbau, Versicherung). Ermitteln Sie dann, wo Sie diese Waren oder Dienstleistungen erwerben können. Prüfen Sie mehr als nur einen Lieferanten (z. B. in einem Vergleichsportal). Achten Sie nicht nur auf den Preis. Auch Zahlungsbedingungen, Lieferung, Zuverlässigkeit und der Service sind wichtig. "]
[]
[null,"STARTUP-KOSTEN"]
[null,"GEBÄUDE/GRUNDSTÜCK"," ","BETRAG"]
[null,"Erwerb",null,{"v":0,"d":"0.00 €"}]
[null,"Bebauung",null,{"v":0,"d":"0.00 €"}]
[null,"Umbauarbeiten",null,{"v":0,"d":"0.00 €"}]
[null,"Sonstiges",null,{"v":0,"d":"0.00 €"}]
[null,"Ergebnis",null,{"$f":"SUBTOTAL(109,Grundstück[BETRAG])","v":{"v":0,"d":"0.00 €"}}]
[]
[null,"MIETEREINBAUTEN"," ","BETRAG"]
[null,"Objekt 1",null,{"v":0,"d":"0.00 €"}]
[null,"Objekt 2",null,{"v":0,"d":"0.00 €"}]
[null,"Objekt 3",null,{"v":0,"d":"0.00 €"}]
[null,"Objekt 4",null,{"v":0,"d":"0.00 €"}]
[null,"Ergebnis",null,{"$f":"SUBTOTAL(109,Einbauten[BETRAG])","v":{"v":0,"d":"0.00 €"}}]
[]
[null,"LISTE DER INVESTITIONSGÜTER"," ","BETRAG"]
[null,"Möbel",null,{"v":0,"d":"0.00 €"}]
[null,"Ausrüstung",null,{"v":0,"d":"0.00 €"}]
[null,"Vorrichtungen",null,{"v":0,"d":"0.00 €"}]
[null,"Maschinen",null,{"v":0,"d":"0.00 €"}]
[null,"Sonstiges",null,{"v":0,"d":"0.00 €"}]
[null,"Ergebnis",null,{"$f":"SUBTOTAL(109,Kapital[BETRAG])","v":{"v":0,"d":"0.00 €"}}]
[]
[null,"STANDORT- UND VERWALTUNGSKOSTEN"," ","BETRAG"]
[null,"Miete",null,{"v":0,"d":"0.00 €"}]
[null,"Nebenkosten",null,{"v":0,"d":"0.00 €"}]
[null,"Rechts- und Buchhaltungskosten",null,{"v":0,"d":"0.00 €"}]
[null,"Im Voraus bezahlte Versicherung",null,{"v":0,"d":"0.00 €"}]
[null,"Gehälter vor Eröffnung ",null,{"v":0,"d":"0.00 €"}]
[null,"Sonstiges",null,{"v":0,"d":"0.00 €"}]
[null,"Ergebnis",null,{"$f":"SUBTOTAL(109,Verwaltungskosten[BETRAG])","v":{"v":0,"d":"0.00 €"}}]
[]
[null,"ANFANGSBESTAND"," ","BETRAG"]
[null,"Kategorie 1",null,{"v":0,"d":"0.00 €"}]
[null,"Kategorie 2",null,{"v":0,"d":"0.00 €"}]
[null,"Kategorie 3",null,{"v":0,"d":"0.00 €"}]
[null,"Kategorie 4",null,{"v":0,"d":"0.00 €"}]
[null,"Kategorie 5",null,{"v":0,"d":"0.00 €"}]
[null,"Ergebnis",null,{"$f":"SUBTOTAL(109,Anfangsbestand[BETRAG])","v":{"v":0,"d":"0.00 €"}}]
[]
[null,"WERBUNGS- UND VERKAUFSFÖRDERUNGSKOSTEN"," ","BETRAG"]
[null,"Werbung",null,{"v":0,"d":"0.00 €"}]
[null,"Beschilderung",null,{"v":0,"d":"0.00 €"}]
[null,"Druckmaterial",null,{"v":0,"d":"0.00 €"}]
[null,"Reise/Unterhaltung",null,{"v":0,"d":"0.00 €"}]
[null,"Sonstige/zusätzliche Kategorien",null,{"v":0,"d":"0.00 €"}]
[null,"Ergebnis",null,{"$f":"SUBTOTAL(109,Verkaufsförderungskosten[BETRAG])","v":{"v":0,"d":"0.00 €"}}]
[]
[null,"SONSTIGE KOSTEN"," ","BETRAG"]
[null,"Sonstige Kosten 1",null,{"v":0,"d":"0.00 €"}]
[null,"Sonstige Kosten 2",null,{"v":0,"d":"0.00 €"}]
[null,"Ergebnis",null,{"$f":"SUBTOTAL(109,SonstigeKosten[BETRAG])","v":{"v":0,"d":"0.00 €"}}]
[]
[null,"Sicherheitsrücklage",null,{"v":0,"d":"0.00 €"}]
[]
[null,"Umlaufvermögen ",null,{"v":0,"d":"0.00 €"}]
[]
[null,"FÜGEN SIE EINE SICHERHEITSRÜCKLAGE HINZU\nErläutern Sie in Ihrem Bericht, wie Sie die Höhe dieser Rücklage berechnet haben. \n\nERMITTELN SIE IHREN CASHFLOW\nSie können ein Unternehmen nicht mit einem leeren Bankkonto eröffnen. Sie benötigen ein Geldpolster, um Ausgaben bestreiten zu können, während sich das Unternehmen in der Anlaufphase befindet. Sie sollten eine Cashflow-Projektion über 12 Monate erstellen. Hier erarbeiten Sie Ihre Schätzung für das erforderliche Umlaufvermögen. Lassen Sie diese Zeile vorerst leer, oder geben in eine grobe Schätzung ein. Nach Abschluss des Cashflow können Sie hierher zurückkehren und den sorgfältig recherchierten Betrag eingeben.\n\nGEBEN SIE IHRE KAPITALQUELLEN AN\nNachdem Sie nun geschätzt haben, wie viel Kapital für den Anfang benötigt wird, sollten Sie sich mit dem oberen Teil dieses Arbeitsblatts befassen. Geben Sie die Beträge ein, die Sie selbst einbringen, wie viel von Partnern oder Investoren einfließt und wie viel durch Darlehen bereitgestellt wird."]
[]
[null,"KAPITALQUELLEN"]
[null,"EIGENTÜMERINVESTITION (NAME UND PROZENTUALER ANTEIL)"," ","BETRAG"]
[null,"Ihr Name und prozentualer Anteil",null,{"v":0,"d":"0.00 €"}]
[null,"Weiterer Investor",null,{"v":0,"d":"0.00 €"}]
[null,"Weiterer Investor",null,{"v":0,"d":"0.00 €"}]
[null,"Weiterer Investor",null,{"v":0,"d":"0.00 €"}]
[null,"Ergebnis",null,{"$f":"SUBTOTAL(109,Eigentümerinvestitionen[BETRAG])","v":{"v":0,"d":"0.00 €"}}]
[]
[null,"BANKDARLEHEN"," ","BETRAG"]
[null,"Bank 1",null,{"v":0,"d":"0.00 €"}]
[null,"Bank 2",null,{"v":0,"d":"0.00 €"}]
[null,"Bank 3",null,{"v":0,"d":"0.00 €"}]
[null,"Bank 4",null,{"v":0,"d":"0.00 €"}]
[null,"Ergebnis",null,{"$f":"SUBTOTAL(109,Bankdarlehen[BETRAG])","v":{"v":0,"d":"0.00 €"}}]
[]
[null,"SONSTIGE DARLEHEN"," ","BETRAG"]
[null,"Quelle 1",null,{"v":0,"d":"0.00 €"}]
[null,"Quelle 2",null,{"v":0,"d":"0.00 €"}]
[null,"Ergebnis",null,{"$f":"SUBTOTAL(109,SonstigeDarlehen[BETRAG])","v":{"v":0,"d":"0.00 €"}}]
[]
[null,"ERBRINGEN SIE EINEN NACHWEIS VON SICHERHEITEN\nWenn Sie diesen Plan zur Beantragung eines Bankdarlehens verwenden, geben Sie im Abschnitt am unteren Rand an, welche Vermögenswerte als Sicherheiten für ein Darlehen gegeben werden, und geben Sie eine Schätzung des Werts an. Seien Sie darauf vorbereitet, einen Nachweis der Schätzung von Sicherheitswerten beizubringen."]
[]
[null,"ZUSAMMENFASSUNG"]
[null,"KAPITALQUELLE"," ","SUMMEN"]
[null,"Eigentümer- und sonstige Investitionen",null,{"$f":"Eigentümerinvestitionen[[#Totals],[BETRAG]]","v":{"v":0,"d":"0.00 €"}}]
[null,"Bankdarlehen",null,{"$f":"Bankdarlehen[[#Totals],[BETRAG]]","v":{"v":0,"d":"0.00 €"}}]
[null,"Sonstige Darlehen",null,{"$f":"SonstigeDarlehen[[#Totals],[BETRAG]]","v":{"v":0,"d":"0.00 €"}}]
[null,"Ergebnis",null,{"$f":"SUBTOTAL(109,Kapitalquellen[SUMMEN])","v":{"v":0,"d":"0.00 €"}}]
[]
[null,"STARTUP-KOSTEN"," ","SUMMEN"]
[null,"Gebäude/Grundstück",null,{"$f":"Grundstück[[#Totals],[BETRAG]]","v":{"v":0,"d":"0.00 €"}}]
[null,"Mietereinbauten",null,{"$f":"Einbauten[[#Totals],[BETRAG]]","v":{"v":0,"d":"0.00 €"}}]
[null,"Investitionsgüter",null,{"$f":"Kapital[[#Totals],[BETRAG]]","v":{"v":0,"d":"0.00 €"}}]
[null,"Standort-/Verwaltungskosten",null,{"$f":"Verwaltungskosten[[#Totals],[BETRAG]]","v":{"v":0,"d":"0.00 €"}}]
[null,"Anfangsbestand",null,{"$f":"Anfangsbestand[[#Totals],[BETRAG]]","v":{"v":0,"d":"0.00 €"}}]
[null,"Werbungs-/Verkaufsförderungskosten",null,{"$f":"Verkaufsförderungskosten[[#Totals],[BETRAG]]","v":{"v":0,"d":"0.00 €"}}]
[null,"Sonstige Kosten",null,{"$f":"SonstigeKosten[[#Totals],[BETRAG]]","v":{"v":0,"d":"0.00 €"}}]
[null,"Sicherheitsrücklage",null,{"$f":"SUM('Startup-Kosten'!$C$57)","v":{"v":0,"d":"0.00 €"}}]
[null,"Umlaufvermögen",null,{"$f":"SUM('Startup-Kosten'!$C$59)","v":{"v":0,"d":"0.00 €"}}]
[null,"Ergebnis",null,{"$f":"SUBTOTAL(109,StartupKosten[SUMMEN])","v":{"v":0,"d":"0.00 €"}}]
[]
[null,"SICHERHEITEN FÜR DARLEHENSANTRAG"]
[null,"SICHERHEITEN FÜR DARLEHEN","BESCHREIBUNG","WERT"]
[null,"Grundbesitz",null,{"v":0,"d":"0.00 €"}]
[null,"Sonstige Sicherheiten",null,{"v":0,"d":"0.00 €"}]
[null,"Sonstige Sicherheiten",null,{"v":0,"d":"0.00 €"}]
[null,"Sonstige Sicherheiten",null,{"v":0,"d":"0.00 €"}]
[null,"Ergebnis",null,{"$f":"SUBTOTAL(109,Sicherheiten[WERT])","v":{"v":0,"d":"0.00 €"}}]
[]
[null,"EIGENTÜMER"," ","  "]
[null,"Hier Ihren Namen eingeben"]
[null,"Weiterer Eigentümer"]
[null,"Weiterer Eigentümer"]
[]
[null,"BÜRGEN FÜR DARLEHEN (KEINE EIGENTÜMER)"," ","  "]
[null,"Bürge 1 für Darlehen"]
[null,"Bürge 2 für Darlehen"]
[null,"Bürge 3 für Darlehen"]